bitfinex-derivatives/quotes_SOLF0:USTF0_20251202
["timestamp","ask_amount","ask_price","bid_price","bid_amount"]
[1764686127393,6.87908382,131.8,131.77,0.04834907]
[1764686128100,6.8291,131.79,131.77,0.04834907]
[1764686128897,0.05048382,131.8,131.77,0.04834907]
[1764686129104,0.05048382,131.8,131.77,3.23834907]
[1764686129492,0.05048382,131.8,131.77,0.04834907]
[1764686130893,6.87898382,131.8,131.77,0.04834907]
[1764686131089,0.05048382,131.8,131.77,3.23834907]
[1764686131292,106.1467,131.89,131.81,3.19]
[1764686131293,6.8238,131.89,131.81,3.19]
[1764686131494,106.1147,131.93,131.83,3.19]
[1764686131689,106.1225,131.92,131.83,3.19]
[1764686131999,106.1299,131.91,131.83,3.19]
[1764686132303,0.0515164,131.88,131.86,0.05812031]
[1764686132908,172.6712,131.96,131.86,4.65812031]
[1764686133107,6.8217,131.93,131.86,3.08]
[1764686133296,106.1058,131.94,131.86,3.08]
[1764686133497,6.8227,131.91,131.86,3.08]
[1764686133688,106.0985,131.95,131.86,3.08]
[1764686133888,0.04849365,131.92,131.89,3.13625441]
[1764686134090,6.8207,131.95,131.89,65.13625441]
[1764686134289,172.6536,131.98,131.89,65.08]
[1764686134492,172.6536,131.98,131.89,71.9035]
[1764686134707,6.8205,131.96,131.9,3.08]
[1764686134904,66.58,131.98,131.91,6.8224]
[1764686135099,0.05292471,131.96,131.93,0.05351688]
[1764686135797,0.05292471,131.96,131.93,3.13351688]
[1764686136207,0.05292471,131.96,131.94,3.08]
[1764686136498,66.56,132.04,131.94,3.08]
[1764686136700,105.9782,132.1,131.98,3.08]
[1764686136896,105.9967,132.08,131.98,3.08]
[1764686137092,106.01,132.06,131.95,3.08]
[1764686137497,0.05306286,132.02,131.99,0.05727144]
[1764686137704,0.05306286,132.02,131.99,3.13727144]
[1764686138999,106.09696286,132.02,131.99,0.05727144]
[1764686139198,106.0501,132.01,131.92,3.2]
[1764686139599,106.0589,132.0,131.92,3.2]
[1764686139806,106.0655,131.99,131.92,3.2]
[1764686140013,106.0749,131.98,131.92,3.2]
[1764686140199,0.05491676,131.96,131.94,0.04950259]
[1764686140603,0.05491676,131.96,131.94,3.24950259]
[1764686141197,0.05491676,131.96,131.94,0.04950259]
[1764686142008,0.05491676,131.96,131.94,3.24950259]
[1764686142399,0.05491676,131.96,131.94,0.04950259]
[1764686144007,0.05491676,131.96,131.94,3.24950259]
[1764686144408,0.05491676,131.96,131.94,0.04950259]
[1764686144807,6.87531676,131.96,131.94,0.04950259]
[1764686146608,0.05491676,131.96,131.94,0.04950259]
[1764686147414,106.1099,131.94,131.87,3.2]
[1764686147709,106.1024,131.95,131.87,3.2]
[1764686147908,106.0673,131.99,131.88,3.2]
[1764686148108,106.0736,131.98,131.88,3.2]
[1764686148298,0.05029657,131.94,131.92,0.05360827]
[1764686149611,0.05029657,131.94,131.92,3.25360827]
[1764686150308,0.05029657,131.94,131.92,65.25360827]
[1764686150508,0.05029657,131.94,131.93,3.2]
[1764686150813,0.05029657,131.94,131.92,0.05360827]
[1764686151814,106.15739657,131.94,131.84,3.2]
[1764686152111,106.1071,131.94,131.84,3.2]
[1764686152304,6.8223,131.92,131.84,3.2]
[1764686152908,0.0500535,131.89,131.87,0.04981901]
[1764686153912,0.0500535,131.89,131.87,3.24981901]
[1764686154402,0.0500535,131.89,131.87,10.07421901]
[1764686154606,0.0500535,131.89,131.88,3.2]
[1764686154809,0.0500535,131.89,131.87,0.04981901]
[1764686156608,6.8739535,131.89,131.87,0.04981901]
[1764686157909,0.0500535,131.89,131.87,3.24981901]
[1764686158914,0.0500535,131.89,131.87,0.04981901]
[1764686159409,0.0500535,131.89,131.87,3.24981901]
[1764686159717,0.0500535,131.89,131.87,10.07431901]
[1764686160016,0.0500535,131.89,131.87,65.24981901]
[1764686160613,6.8213,131.94,131.88,3.2]
[1764686160913,106.0972,131.96,131.87,62.0]
[1764686161708,0.05655917,131.93,131.9,0.05764073]
[1764686161908,6.8224,131.92,131.9,0.05764073]
[1764686162311,6.8236,131.89,131.84,10.026]
[1764686162509,6.8236,131.89,131.8,3.2]
[1764686162510,106.1493,131.89,131.8,3.2]
[1764686162714,106.1493,131.89,131.77,133.77985176]
[1764686162715,106.158,131.88,131.78,3.2]
[1764686163015,106.1732,131.86,131.79,6.8284]
[1764686163207,106.1732,131.86,131.75,66.5]
[1764686163208,106.1925,131.84,131.75,66.5]
[1764686163409,0.04974467,131.81,131.78,0.04993951]
[1764686163801,6.8283,131.8,131.78,0.04993951]
[1764686164511,0.04974467,131.81,131.78,0.04993951]
[1764686165019,0.04974467,131.81,131.78,3.24993951]
[1764686165408,0.04974467,131.81,131.78,65.24993951]
[1764686165715,0.04974467,131.81,131.78,3.24993951]
[1764686165915,0.04974467,131.81,131.8,3.2]
[1764686166117,172.6443,131.9,131.8,3.2]
[1764686166319,172.6443,131.9,131.81,3.2]
[1764686167110,0.04870215,131.87,131.84,0.05092063]
[1764686168210,0.04870215,131.87,131.84,3.25092063]
[1764686168622,0.04870215,131.87,131.85,62.0]
[1764686168819,0.04870215,131.87,131.85,65.07]
[1764686169316,0.04870215,131.87,131.86,3.07]
[1764686170016,0.04870215,131.87,131.85,68.8255]
[1764686170217,0.04870215,131.87,131.85,62.0]
[1764686170524,0.04870215,131.87,131.86,3.07]
[1764686170727,6.8196,131.97,131.9,6.8229]
[1764686171212,6.8201,131.96,131.89,9.8934]
[1764686171418,106.0854,131.97,131.89,3.07]
[1764686171722,0.04797397,131.94,131.92,0.05748842]
[1764686172123,6.86937397,131.94,131.92,0.05748842]
[1764686172325,106.1217,131.92,131.85,65.07]
[1764686172528,5.16288352,131.96,131.86,3.07]
[1764686172824,6.8212,131.94,131.87,6.8245]
[1764686173025,106.0984,131.95,131.87,6.8245]
[1764686173327,106.17832373,131.92,131.9,0.04822019]
[1764686173529,106.17832373,131.92,131.85,62.0]
[1764686173732,0.05482373,131.92,131.85,62.0]
[1764686174026,0.05482373,131.92,131.88,3.07]
[1764686174725,0.05482373,131.92,131.89,3.11903759]
[1764686175719,0.05482373,131.92,131.89,9.94243759]
[1764686176022,0.05482373,131.92,131.89,0.04903759]
[1764686176829,106.18052373,131.92,131.89,0.04903759]
[1764686177028,6.8228,131.91,131.89,0.04903759]
[1764686177325,106.1381,131.9,131.82,69.57]
[1764686177525,6.8254,131.86,131.78,3.07]
[1764686177725,6.8254,131.86,131.79,3.07]
[1764686178119,6.8254,131.86,131.8,6.8281]
[1764686178319,172.6684,131.89,131.82,0.05456611]
[1764686178320,0.04967656,131.84,131.82,0.05456611]
[1764686178521,0.05072477,131.84,131.82,0.05456611]
[1764686179421,6.87702477,131.84,131.82,0.05456611]
[1764686180128,0.05072477,131.84,131.82,3.12456611]
[1764686181326,6.8243,131.88,131.82,3.12456611]
[1764686181534,66.52,131.91,131.83,3.07]
[1764686182132,106.1004,131.95,131.85,3.07]
[1764686182436,0.05579262,131.91,131.89,0.0569507]
[1764686182733,0.05579262,131.91,131.89,3.1269507]
[1764686183430,0.05579262,131.91,131.89,65.1269507]
[1764686183629,0.05579262,131.91,131.9,3.07]
[1764686183836,66.54,131.97,131.9,3.07]
[1764686184222,66.54,131.97,131.92,6.8218]
[1764686184827,0.05442213,131.96,131.93,0.05301882]
[1764686186535,6.87462213,131.96,131.93,0.05301882]
[1764686186923,0.05442213,131.96,131.93,3.12301882]
[1764686187226,0.05442213,131.96,131.95,3.07]
[1764686189733,0.05442213,131.96,131.93,0.05301882]
[1764686190326,0.05442213,131.96,131.93,3.12301882]
[1764686190834,0.05442213,131.96,131.93,0.05301882]
[1764686191338,0.05442213,131.96,131.93,3.12301882]
[1764686192529,0.05442213,131.96,131.93,0.05301882]
[1764686192730,6.87452213,131.96,131.93,0.05301882]
[1764686192928,106.14662213,131.96,131.93,0.05301882]
[1764686193132,106.1057,131.94,131.86,3.29]
[1764686193333,106.1217,131.92,131.83,43.02]
[1764686193836,106.1137,131.93,131.83,46.31]
[1764686194035,0.05220886,131.89,131.87,0.0557783]
[1764686194233,0.05604366,131.89,131.87,0.05257148]
[1764686196745,0.05604366,131.89,131.87,3.34257148]
[1764686197132,0.05604366,131.89,131.87,0.05257148]
[1764686197543,0.05604366,131.89,131.87,3.34257148]
[1764686197842,106.0774,131.98,131.88,3.29]
[1764686198141,106.0895,131.96,131.88,3.29]
[1764686198332,106.0895,131.96,131.84,106.1824]
[1764686198333,106.1057,131.94,131.85,3.29]
[1764686198637,6.8222,131.92,131.85,3.29]
[1764686198829,66.46,131.97,131.87,3.23229086]
[1764686199031,6.8199,131.97,131.9,6.823]
[1764686199245,0.04869993,131.93,131.91,0.05010982]
[1764686199439,0.0568235,131.93,131.91,0.0580849]
[1764686200546,6.8785235,131.93,131.86,6.8249]
[1764686200747,106.1346,131.91,131.83,3.18]
[1764686201746,0.05669392,131.88,131.86,0.05246944]
[1764686202142,6.88109392,131.88,131.86,0.05246944]
[1764686202644,6.8254,131.86,131.81,6.8277]
[1764686202847,6.8254,131.86,131.81,10.0077]
[1764686203048,6.8254,131.86,131.81,72.0077]
[1764686203342,6.8242,131.88,131.82,10.0069]
[1764686203549,6.8242,131.88,131.82,3.18]
[1764686203756,0.05552306,131.86,131.84,3.23138763]
[1764686203947,0.05552306,131.86,131.84,10.05718763]
[1764686204148,0.05552306,131.86,131.85,3.18]
[1764686204839,6.8221,131.93,131.86,3.18]
[1764686205743,0.0492891,131.91,131.88,0.05247741]
[1764686205943,0.0492891,131.91,131.88,10.05657741]
[1764686206251,66.44,132.0,131.89,3.18]
[1764686206938,6.8202,131.96,131.9,6.8228]
[1764686207135,0.05173828,131.94,131.92,0.05262067]
[1764686207338,0.05173828,131.94,131.92,3.23262067]
[1764686208145,106.0049,132.07,131.95,109.2721]
[1764686208349,105.9809,132.1,131.99,109.2387]
[1764686208551,105.9809,132.1,132.0,3.18]
[1764686208852,105.9576,132.13,132.04,3.18]
[1764686209046,0.04967275,132.1,132.07,0.04963162]
[1764686213142,105.902,132.2,132.09,3.18]
[1764686213453,6.8085,132.19,132.09,3.18]
[1764686214046,0.05606681,132.15,132.13,0.05455393]
[1764686214442,105.99666681,132.15,132.13,0.05455393]
[1764686214639,6.8107,132.14,132.13,0.05455393]
[1764686214951,0.05606681,132.15,132.13,0.05455393]
[1764686217041,0.05606681,132.15,132.13,3.23455393]
[1764686217248,172.3292,132.21,132.13,3.23455393]
[1764686217249,105.8731,132.23,132.13,3.23455393]
[1764686217445,105.881,132.22,132.13,3.18]
[1764686218249,105.881,132.22,132.1,105.9761]
[1764686218250,0.02825212,132.19,132.16,3.23669412]
[1764686219055,0.02825212,132.19,132.16,0.05669412]
[1764686219557,6.8086,132.18,132.16,0.05669412]
[1764686220455,105.9318,132.16,132.09,65.18]
[1764686220649,105.9318,132.16,132.09,3.18]
[1764686220850,6.8111,132.14,132.09,3.18]
[1764686221052,105.947,132.14,132.09,3.18]
[1764686221254,105.947,132.14,132.05,9.9951]
[1764686221444,6.86311696,132.11,132.09,0.04815506]
[1764686221649,105.9865,132.09,132.03,3.18]
[1764686221863,106.0027,132.07,131.99,3.18]
[1764686222154,172.4227,132.07,131.99,3.18]
[1764686222355,172.4153,132.08,131.99,3.18]
[1764686222749,0.04782432,132.05,132.03,3.18]
[1764686222950,0.04782432,132.05,132.03,0.05527588]
[1764686223558,0.04782432,132.05,132.03,3.23527588]
[1764686223759,0.04782432,132.05,132.03,0.05527588]
[1764686225158,6.86352432,132.05,132.03,0.05527588]
[1764686225956,112.88142432,132.05,132.03,0.05527588]
[1764686227061,179.30142432,132.05,132.03,0.05527588]
[1764686227364,106.0293,132.04,131.96,6.8198]
[1764686227561,106.0293,132.04,131.96,9.9998]
[1764686227756,106.0078,132.07,131.99,3.18]
[1764686227955,106.0035,132.07,131.99,3.18]
[1764686228150,106.0035,132.07,132.02,0.05447425]
[1764686228357,0.05606943,132.04,132.02,0.05447425]
[1764686228549,0.05606943,132.04,132.02,3.17447425]
[1764686228755,172.4005,132.1,132.02,3.17447425]
[1764686228948,105.9577,132.13,132.03,3.12]
[1764686229147,105.9577,132.13,132.02,109.1579]
[1764686229148,6.8112,132.13,132.07,3.12]
[1764686229853,0.04914305,132.11,132.09,3.17018674]
[1764686230063,0.04914305,132.11,132.09,0.05018674]
[1764686232161,0.04914305,132.11,132.09,3.17018674]
[1764686232762,66.44,132.16,132.09,3.17018674]
[1764686233266,172.3759,132.16,132.09,3.17018674]
[1764686233464,172.3759,132.16,132.09,0.05018674]
[1764686233465,105.9376,132.15,132.09,0.05018674]
[1764686233665,66.44,132.16,132.09,0.05018674]
[1764686233858,0.05619944,132.13,132.09,3.17018674]
[1764686234170,0.05406888,132.12,132.1,3.17240537]
[1764686234373,0.0527968,132.12,132.1,3.17357986]
[1764686234565,0.0527968,132.12,132.1,9.98617986]
[1764686234767,0.0527968,132.12,132.1,0.05357986]
[1764686235663,0.0527968,132.12,132.1,9.98607986]
[1764686235859,105.8896,132.21,132.1,109.14717986]
[1764686236056,66.42,132.21,132.12,105.9594]
[1764686236455,66.46,132.24,132.15,105.936]
[1764686236868,0.0303679,132.21,132.18,0.04828034]
[1764686237260,0.0303679,132.21,132.18,6.85668034]
[1764686237669,0.0303679,132.21,132.18,0.04828034]
[1764686240766,6.8376679,132.21,132.18,0.04828034]
[1764686243874,0.0303679,132.21,132.18,0.04828034]
[1764686244174,0.0303679,132.21,132.18,3.16828034]
[1764686244581,0.0303679,132.21,132.2,3.12]
[1764686244772,73.2248,132.26,132.2,3.12]
[1764686244963,66.42,132.26,132.2,3.12]
[1764686245468,6.8035,132.29,132.22,6.8065]
[1764686245772,73.2435,132.29,132.24,0.05560757]
[1764686246172,6.8035,132.29,132.24,0.05560757]
[1764686246368,6.8046,132.26,132.24,0.05560757]
[1764686248475,66.44,132.25,132.17,6.809]
[1764686248782,105.8655,132.24,132.13,109.0678]
[1764686249473,0.0553446,132.2,132.17,0.05820587]
[1764686249672,66.44,132.19,132.17,0.05820587]
[1764686249877,0.0553446,132.2,132.17,0.05820587]
[1764686250080,73.2481,132.19,132.17,0.05820587]
[1764686250275,66.44,132.19,132.17,0.05820587]
[1764686250478,66.4953446,132.2,132.17,0.05820587]
[1764686251076,6.809,132.18,132.11,9.9321]
[1764686251978,0.04989808,132.16,132.13,0.05261015]
[1764686252886,0.04989808,132.16,132.13,3.34261015]
[1764686253067,0.04989808,132.16,132.13,0.05261015]
[1764686253482,0.04989808,132.16,132.13,3.34261015]
[1764686253881,0.04989808,132.16,132.13,0.05261015]
[1764686254683,0.04989808,132.16,132.13,3.34261015]
[1764686254882,0.04989808,132.16,132.14,6.8106]
[1764686255579,0.04989808,132.16,132.13,3.34261015]
[1764686257079,0.04989808,132.16,132.13,0.05261015]
[1764686259380,6.85979808,132.16,132.13,0.05261015]
[1764686259581,0.04989808,132.16,132.13,0.05261015]
[1764686260482,0.04989808,132.16,132.14,6.8107]
[1764686260687,0.04989808,132.16,132.14,9.9507]
[1764686261100,116.89155189,132.28,132.16,3.14]
[1764686261389,66.38,132.27,132.16,3.14]
[1764686262180,0.0555433,132.23,132.2,0.05543158]
[1764686264686,6.8618433,132.23,132.2,0.05543158]
[1764686264984,0.0555433,132.23,132.2,0.05543158]
[1764686265890,66.34,132.22,132.2,0.05543158]
[1764686266294,67.86,132.22,132.14,6.8106]
[1764686266585,105.8959,132.21,132.09,215.0986]
[1764686266790,105.8959,132.21,132.13,6.8111]
[1764686267291,0.05336299,132.18,132.16,0.05281341]
[1764686269284,6.8092,132.17,132.08,3.14]
[1764686269689,105.9329,132.16,132.04,109.1587]
[1764686269993,105.9507,132.14,132.04,3.14]
[1764686270194,105.9577,132.13,132.04,3.14]
[1764686270497,6.86878738,132.1,132.07,0.0556771]
[1764686270698,172.35758738,132.1,132.07,0.0556771]
[1764686270898,6.8135,132.09,132.07,0.0556771]
[1764686271100,66.32,132.08,132.07,0.0556771]
[1764686272798,0.05568738,132.1,132.07,0.0556771]
[1764686272998,73.1334,132.09,132.07,0.0556771]
[1764686273201,0.05568738,132.1,132.07,0.0556771]
[1764686275296,0.05568738,132.1,132.07,3.1956771]
[1764686276905,0.05568738,132.1,132.08,3.14]
[1764686277300,0.05568738,132.1,132.08,4.66]
[1764686277503,6.8108,132.14,132.09,3.14]
[1764686277911,66.32,132.15,132.09,3.14]
[1764686278705,0.05053644,132.13,132.11,0.0564126]
[1764686278906,6.86193644,132.13,132.11,0.0564126]
[1764686280301,6.8125,132.11,132.06,3.14]
[1764686281000,6.8125,132.11,132.03,3.62773]
[1764686281191,0.05098939,132.08,132.06,0.05566528]
[1764686281502,106.0022,132.07,132.03,0.48773]
[1764686282101,106.04879133,132.08,131.95,3.14]
[1764686282102,106.0254,132.04,131.95,3.14]
[1764686282308,106.0349,132.03,131.95,3.14]
[1764686282495,66.28,132.02,131.95,3.14]
[1764686282695,66.28,132.02,131.98,0.05630701]
[1764686282696,0.05037485,132.0,131.98,0.05630701]
[1764686283808,0.05037485,132.0,131.98,3.19630701]
[1764686284304,105.9857,132.09,131.99,3.14]
[1764686284512,66.3,132.08,131.99,3.14]
[1764686284804,6.816,132.04,131.99,3.14]
[1764686285404,0.04778157,132.03,132.0,3.19710617]
[1764686285707,6.86438157,132.03,132.0,0.05710617]
[1764686286106,106.08378157,132.03,131.96,3.14]
[1764686286412,106.0496,132.01,131.93,3.14]
[1764686286808,66.3,132.0,131.93,3.14]
[1764686287013,6.8193,131.98,131.93,3.14]
[1764686287214,0.05517087,131.97,131.94,0.05118338]
[1764686287409,0.05517087,131.97,131.94,3.19118338]
[1764686287608,0.05517087,131.97,131.94,0.05118338]
[1764686288812,0.05517087,131.97,131.94,3.09118338]
[1764686289202,106.0223,132.05,131.94,3.09118338]
[1764686289411,66.3,132.04,131.95,3.04]
[1764686290417,0.05676249,132.01,131.98,0.05821494]
[1764686290710,106.11136249,132.01,131.98,0.05821494]
[1764686290918,106.1176,131.93,131.88,3.04]
[1764686291105,106.1312,131.91,131.84,3.04]
[1764686291311,106.1461,131.89,131.78,3.04]
[1764686291706,106.1378,131.9,131.81,3.04]
[1764686291911,0.05139262,131.87,131.84,0.05069113]
[1764686292111,6.87639262,131.87,131.84,0.05069113]
[1764686292312,0.05139262,131.87,131.84,0.05069113]
[1764686292509,106.21879262,131.87,131.84,0.05069113]
[1764686292910,6.8255,131.86,131.84,0.05069113]
[1764686293114,66.36,131.85,131.84,0.05069113]
[1764686293516,6.8265,131.84,131.78,65.04]
[1764686294019,106.1862,131.84,131.78,3.04]
[1764686294418,325.21431572,131.96,131.78,3.04]
[1764686294419,66.38,131.83,131.78,3.04]
[1764686294622,0.05153412,131.82,131.8,0.05755847]
[1764686295116,0.05153412,131.82,131.8,3.09755847]
[1764686295318,0.05153412,131.82,131.8,0.05755847]
[1764686295517,0.00153412,131.82,131.8,3.09755847]
[1764686295819,66.38,131.88,131.81,3.04]
[1764686296123,66.38,131.88,131.83,3.04]
[1764686296323,172.5367,131.88,131.83,3.04]
[1764686296520,106.1637,131.87,131.78,3.04]
[1764686296822,0.0553336,131.84,131.81,3.0926708]
[1764686297717,66.4353336,131.84,131.81,3.0926708]
[1764686298024,66.4553336,131.84,131.81,3.0926708]
[1764686298521,0.0553336,131.84,131.81,3.0926708]
[1764686298717,66.38,131.88,131.81,3.0926708]
[1764686298924,66.38,131.88,131.81,3.04]
[1764686299327,66.38,131.88,131.8,106.2134]
[1764686299328,66.38,131.88,131.82,9.8672]
[1764686299523,106.1167,131.93,131.83,109.2297]
[1764686299727,0.05621819,131.89,131.87,3.09772468]
[1764686301929,0.05621819,131.89,131.87,0.05772468]
[1764686302130,0.05621819,131.89,131.88,3.04]
[1764686302431,0.05621819,131.89,131.87,0.05772468]
[1764686303925,6.88001819,131.89,131.87,0.05772468]
[1764686304327,106.1555,131.88,131.81,3.04]
[1764686304832,106.1704,131.86,131.81,3.04]
[1764686305033,106.1665,131.87,131.81,3.04]
[1764686305230,66.36,131.86,131.81,3.04]
[1764686305432,66.36,131.86,131.82,3.09630731]
[1764686305433,0.04812919,131.85,131.82,3.09630731]
[1764686305628,6.87402919,131.85,131.82,3.09630731]
[1764686305834,0.04812919,131.85,131.82,0.05630731]
[1764686307332,6.8265,131.84,131.82,0.05630731]
[1764686307527,66.34,131.83,131.82,0.05630731]
[1764686308531,6.8265,131.84,131.82,0.05630731]
[1764686308833,73.1465,131.84,131.82,0.05630731]
[1764686309537,0.04812919,131.85,131.82,3.09630731]
[1764686309723,0.04812919,131.85,131.82,0.05630731]
[1764686310129,6.8266,131.84,131.82,0.05630731]
[1764686310429,66.36,131.83,131.82,0.05630731]
[1764686310740,0.04812919,131.85,131.82,3.09630731]
[1764686310937,66.34,131.84,131.82,0.05630731]
[1764686311639,73.1663,131.84,131.82,0.05630731]
[1764686311836,0.04812919,131.85,131.82,0.05630731]
[1764686312136,0.04812919,131.85,131.82,3.09630731]
[1764686313136,0.04812919,131.85,131.82,0.05630731]
[1764686313332,6.8267,131.84,131.82,0.05630731]
[1764686314134,66.34,131.83,131.82,0.05630731]
[1764686314933,6.8278,131.81,131.76,3.18]
[1764686315134,172.535,131.83,131.76,3.18]
[1764686315640,106.2202,131.8,131.69,23.2134758]
[1764686315830,66.34,131.79,131.73,3.18]
[1764686316032,0.05510871,131.77,131.75,3.23615568]
[1764686317644,0.05510871,131.77,131.75,0.05615568]
[1764686318145,0.05510871,131.77,131.75,3.23615568]
[1764686319837,106.1731,131.86,131.75,4.75615568]
[1764686320141,172.5044,131.85,131.75,3.18]
[1764686320342,106.1928,131.84,131.76,3.21]
[1764686320541,66.32,131.83,131.76,3.21]
[1764686321045,106.1928,131.84,131.78,3.26136987]
[1764686321046,0.05396872,131.81,131.78,3.26136987]
[1764686321939,0.05396872,131.81,131.78,0.05136987]
[1764686322340,6.8286,131.8,131.78,3.26136987]
[1764686323240,6.8286,131.8,131.78,0.05136987]
[1764686323441,73.1486,131.8,131.78,0.05136987]
[1764686326243,6.8288,131.79,131.78,3.26136987]
[1764686328749,6.8288,131.79,131.78,0.05136987]
[1764686329851,6.8288,131.79,131.78,3.26136987]
[1764686330453,6.8288,131.79,131.78,0.05136987]
[1764686331445,6.8303,131.76,131.75,3.21]
[1764686331653,172.5457,131.77,131.73,3.21]
[1764686332041,66.3,131.77,131.73,3.21]
[1764686332448,0.05122908,131.76,131.75,3.21]
[1764686333355,6.88192908,131.76,131.75,3.21]
[1764686336150,106.18,131.85,131.76,3.21]
[1764686336357,172.4868,131.84,131.76,3.21]
[1764686336758,106.1962,131.83,131.76,3.21]
[1764686337145,0.05117882,131.81,131.76,3.21]
[1764686337349,172.56407882,131.81,131.77,3.26045429]
[1764686337657,6.8288,131.79,131.77,3.26045429]
[1764686338158,119.8248,131.86,131.77,3.26045429]
[1764686338357,106.1744,131.86,131.77,3.26045429]
[1764686338563,106.179,131.85,131.77,3.21]
[1764686339155,106.1542,131.88,131.78,3.21]
[1764686339352,66.3,131.87,131.81,3.21]
[1764686339862,106.17,131.86,131.81,3.21]
[1764686340261,6.827,131.83,131.82,0.05246173]
[1764686340460,0.05665772,131.85,131.82,3.26246173]
[1764686341149,0.05665772,131.85,131.83,62.0]
[1764686341355,6.88255772,131.85,131.83,65.21]
[1764686341759,6.88255772,131.85,131.84,3.21]
[1764686341959,3.52255772,131.85,131.84,3.21]
[1764686342158,6.8249,131.87,131.84,3.21]
[1764686342562,106.1682,131.87,131.83,3.21]
[1764686342756,109.2228,131.86,131.82,0.05246173]
[1764686343062,106.23385823,131.85,131.82,3.26246173]
[1764686344462,0.05575823,131.85,131.82,3.26246173]
[1764686345267,0.05575823,131.85,131.84,3.21]
[1764686345760,6.88165823,131.85,131.83,62.0]
[1764686345969,6.88165823,131.85,131.83,3.21]
[1764686346153,3.05,131.92,131.83,3.21]
[1764686346363,6.8246,131.88,131.83,3.21]
[1764686347156,6.8235,131.9,131.84,3.21]
[1764686347469,0.02356478,131.88,131.87,3.21]
[1764686348969,0.02356478,131.88,131.87,65.21]
[1764686349676,106.1007,131.95,131.88,3.11]
[1764686350163,106.0868,131.97,131.88,3.11]
[1764686350660,106.0868,131.97,131.91,3.15972436]
[1764686350661,6.8212,131.94,131.91,3.15972436]
[1764686351563,109.1424,131.96,131.91,0.04972436]
[1764686351564,6.8217,131.93,131.91,0.04972436]
[1764686352165,9.8717,131.93,131.91,0.04972436]
[1764686352368,3.05,131.92,131.87,3.11]
[1764686352868,6.8222,131.92,131.89,3.11]
[1764686353263,6.8222,131.92,131.89,3.16442808]
[1764686353264,6.87008634,131.92,131.89,3.16442808]
[1764686353458,6.823,131.91,131.89,0.05442808]
[1764686353664,3.05,131.9,131.89,0.05442808]
[1764686353880,6.823,131.91,131.89,0.05442808]
[1764686355165,0.04788634,131.92,131.89,3.16442808]
[1764686356068,109.1358,131.97,131.89,3.16442808]
[1764686356367,3.05,131.97,131.91,6.8225]
[1764686356567,3.05,131.97,131.92,62.0]
[1764686356763,3.05,131.97,131.92,65.11]
[1764686356962,3.05,131.97,131.93,0.04790315]
[1764686357170,6.8207,131.95,131.93,0.04790315]
[1764686357566,9.8707,131.95,131.93,0.04790315]
[1764686357868,3.05,131.94,131.93,0.04790315]
[1764686358065,6.8207,131.95,131.93,0.04790315]
[1764686358261,9.8707,131.95,131.93,0.04790315]
[1764686359379,3.05,131.94,131.93,0.04790315]
[1764686359673,3.05,131.94,131.89,3.11]
[1764686360773,3.09974117,131.93,131.9,62.05214367]
[1764686361072,3.05,131.91,131.9,0.05214367]
[1764686361460,3.05,131.91,131.83,6.8266]
[1764686361461,6.8243,131.88,131.83,6.8266]
[1764686361665,109.1985,131.89,131.83,3.11]
[1764686361862,3.05,131.87,131.79,3.11]
[1764686362062,3.05,131.85,131.79,3.11]
[1764686362267,3.05,131.84,131.79,3.11]
[1764686362478,3.05,131.82,131.8,0.05713262]
[1764686362872,9.8774,131.82,131.8,0.05713262]
[1764686363469,3.05,131.82,131.8,0.05713262]
[1764686363673,76.16996853,131.83,131.8,0.05713262]
[1764686363875,3.05,131.82,131.8,0.05713262]
[1764686364274,0.05286853,131.83,131.8,3.16713262]
[1764686364782,3.05,131.87,131.82,3.11]
[1764686364982,175.4293,131.9,131.82,3.11]
[1764686365477,3.05,131.9,131.84,3.11]
[1764686365881,0.04901631,131.88,131.86,0.05152687]
[1764686367686,0.04901631,131.88,131.87,62.0]